fUSD/lending_fUSD_20240420
["ID","MTS","AMOUNT","RATE_DAILY","PERIOD"]
[323002182,1713581455742,-1058.03,0.00015342,2]
[323002183,1713581455752,-1534.23,0.00015342,2]
[323002184,1713581455762,-810.88,0.00015342,2]
[323002185,1713581455771,-500.0,0.00015342,2]
[323002186,1713581455781,-500.0,0.00015342,2]
[323002187,1713581455791,-500.0,0.00015342,2]
[323002188,1713581455800,-2494.79,0.00015342,2]
[323002189,1713581455810,-1410.97,0.00015342,2]
[323002190,1713581455819,-935.19,0.00015342,2]
[323002191,1713581455828,-500.0,0.00015342,2]
[323002192,1713581455837,-500.0,0.00015342,2]
[323002193,1713581455846,-1498.08,0.00015342,2]
[323002194,1713581455856,-521.21,0.00015342,2]
[323002195,1713581455865,-641.56,0.00015342,2]
[323002196,1713581455873,-1806.32,0.00015342,2]
[323002197,1713581455882,-500.0,0.00015342,2]
[323002198,1713581455893,-500.0,0.00015342,2]
[323002199,1713581455904,-3047.98,0.00015342,2]
[323002200,1713581455913,-703.48,0.00015342,2]
[323002201,1713581455923,-500.0,0.00015342,2]
[323002202,1713581455932,-2492.88,0.00015342,2]
[323002203,1713581455941,-500.0,0.00015342,2]
[323002204,1713581455950,-16237.2,0.00015342,2]
[323002205,1713581455960,-1064.79,0.00015342,2]
[323002206,1713581455969,-910.46,0.00015342,2]
[323002207,1713581455978,-500.0,0.00015342,2]
[323002208,1713581455987,-500.0,0.00015342,2]
[323002209,1713581455996,-500.0,0.00015342,2]
[323002210,1713581456005,-500.0,0.00015342,2]
[323002211,1713581456014,-500.0,0.00015342,2]
[323002212,1713581456023,-500.0,0.00015342,2]
[323002213,1713581456032,-2998.76,0.00015342,2]
[323002214,1713581456041,-500.0,0.00015342,2]
[323002215,1713581456050,-684.19,0.00015342,2]
[323002216,1713581456059,-784.06,0.00015342,2]
[323002217,1713581456068,-868.11,0.00015342,2]
[323002218,1713581456077,-2071.33,0.00015342,2]
[323002219,1713581456086,-500.0,0.00015342,2]
[323002220,1713581456096,-4789.58,0.00015342,2]
[323002221,1713581456105,-500.0,0.00015342,2]
[323002222,1713581456115,-500.0,0.00015342,2]
[323002223,1713581456124,-500.0,0.00015342,2]
[323002224,1713581456133,-500.0,0.00015342,2]
[323002225,1713581456142,-500.0,0.00015342,2]
[323002226,1713581456152,-1412.81,0.00015342,2]
[323002227,1713581456160,-6951.07,0.00015342,2]
[323002228,1713581456169,-500.0,0.00015342,2]
[323002229,1713581456178,-4687.88,0.00015342,2]
[323002230,1713581456186,-650.04,0.00015342,2]
[323002231,1713581456196,-500.0,0.00015342,2]
[323002232,1713581456204,-5990.17,0.00015342,2]
[323002233,1713581456213,-506.43634044,0.00015342,2]
[323002234,1713581456222,-1759.25,0.00015342,2]
[323002235,1713581456231,-5253.75,0.00015342,2]
[323002236,1713581456240,-339.38374954,0.00015342,2]
[323002237,1713581456249,-1974.84,0.00015342,2]
[323002238,1713581456258,-519.14188584,0.00015342,2]
[323002239,1713581456267,-500.0,0.00015342,2]
[323002240,1713581456275,-689.48,0.00015342,2]
[323002241,1713581456284,-1215.17,0.00015342,2]
[323002242,1713581456293,-500.0,0.00015342,2]
[323002243,1713581456302,-566.68,0.00015342,2]
[323002244,1713581456311,-578.59,0.00015342,2]
[323002245,1713581456320,-500.0,0.00015342,2]
[323002246,1713581456329,-637.43,0.00015342,2]
[323002247,1713581456338,-25265.58,0.00015342,2]
[323002248,1713581456347,-1468.96,0.00015342,2]
[323002249,1713581456356,-3192.0,0.00015342,2]
[323002250,1713581456365,-16297.19288676,0.000154,2]
[323002251,1713581456374,-179.68588172,0.000154,2]
[323002252,1713581456383,-676.44170112,0.00015406,2]
[323002253,1713581456392,-3022.63097126,0.00015406,2]
[323002254,1713581456402,-562.07485058,0.00015416,2]
[323002255,1713581456411,-10324.99954274,0.00015447,2]
[323002256,1713581456420,-1010.20190558,0.000155,2]
[323002257,1713581456429,-4999.99,0.000155,2]
[323002258,1713581456438,-5000.0,0.000155,2]
[323002259,1713581456449,-4999.99,0.000155,2]
[323002260,1713581456459,-7694.62,0.000155,2]
[323002261,1713581456468,-8000.0,0.000155,2]
[323002262,1713581456477,-5000.0,0.000155,2]
[323002263,1713581456486,-8000.0,0.000155,2]
[323002264,1713581456498,-5000.0,0.000155,2]
[323002265,1713581456507,-150.0,0.000155,2]
[323002266,1713581456516,-8000.0,0.00015505,2]
[323002267,1713581456526,-5000.0,0.00015506,2]
[323002268,1713581456536,-8000.0,0.0001551,2]
[323002269,1713581456545,-5000.0,0.00015513,2]
[323002270,1713581456555,-8000.0,0.00015515,2]
[323002271,1713581456564,-56418.73894253,0.00015516,2]
[323002272,1713581457203,-43581.26105747,0.00015516,2]
[323002273,1713581457213,-5000.0,0.00015519,2]
[323002274,1713581457222,-5000.0,0.00015525,2]
[323002275,1713581457231,-5000.0,0.00015531,2]
[323002276,1713581457240,-5000.0,0.00015538,2]
[323002277,1713581457249,-5000.0,0.00015544,2]
[323002278,1713581457258,-5000.0,0.0001555,2]
[323002279,1713581457267,-5000.0,0.00015556,2]
[323002280,1713581457276,-5000.0,0.00015563,2]
[323002281,1713581457285,-5000.0,0.00015569,2]
[323002282,1713581457294,-5000.0,0.00015575,2]
[323002283,1713581457303,-5000.0,0.00015581,2]
[323002284,1713581457312,-1491.01142955,0.00015586,2]
[323002285,1713581457321,-5000.0,0.00015588,2]
[323002286,1713581457330,-644.0,0.00015589,2]
[323002287,1713581457339,-289.94170266,0.00015603,2]
[323002288,1713581457349,-153.89479006,0.00015606,2]
[323002289,1713581457359,-473.24099516,0.00015614,2]
[323002290,1713581457368,-500.0,0.00015616,2]
[323002291,1713581457377,-500.0,0.00015616,2]
[323002292,1713581457386,-500.0,0.00015616,2]
[323002293,1713581457395,-500.0,0.00015616,2]
[323002294,1713581457405,-500.0,0.00015616,2]
[323002295,1713581457415,-500.0,0.00015616,2]
[323002296,1713581457424,-562.77,0.00015616,2]
[323002297,1713581457433,-500.0,0.00015616,2]
[323002298,1713581457442,-500.0,0.00015616,2]
[323002299,1713581457453,-675.0,0.00015616,2]
[323002300,1713581457462,-500.0,0.00015616,2]
[323002301,1713581457471,-500.0,0.00015616,2]
[323002302,1713581457480,-584.13253165,0.00015616,2]
[323002303,1713581457489,-816.2,0.00015616,2]
[323002304,1713581457499,-500.0,0.00015616,2]
[323002305,1713581457508,-500.0,0.00015616,2]
[323002306,1713581457518,-500.0,0.00015616,2]
[323002307,1713581457527,-500.0,0.00015616,2]
[323002308,1713581457536,-500.0,0.00015616,2]
[323002309,1713581457545,-676.16,0.00015616,2]
[323002310,1713581457554,-879.72,0.00015616,2]
[323002311,1713581457564,-500.0,0.00015616,2]
[323002312,1713581457573,-500.0,0.00015616,2]
[323002313,1713581457582,-500.0,0.00015616,2]
[323002314,1713581457591,-636.62,0.00015616,2]
[323002315,1713581457601,-510.47935745,0.00015616,2]
[323002316,1713581457610,-500.0,0.00015616,2]
[323002317,1713581457620,-500.0,0.00015616,2]
[323002318,1713581457629,-500.0,0.00015616,2]
[323002319,1713581457638,-500.0,0.00015616,2]
[323002320,1713581457647,-500.0,0.00015616,2]
[323002321,1713581457657,-700.59,0.00015616,2]
[323002322,1713581457666,-500.0,0.00015616,2]
[323002323,1713581457678,-500.0,0.00015616,2]
[323002324,1713581457688,-500.0,0.00015616,2]
[323002325,1713581457697,-500.0,0.00015616,2]
[323002326,1713581457707,-500.0,0.00015616,2]
[323002327,1713581457716,-500.0,0.00015616,2]
[323002328,1713581457726,-511.68,0.00015616,2]
[323002329,1713581457735,-500.0,0.00015616,2]
[323002330,1713581457744,-500.0,0.00015616,2]
[323002331,1713581457755,-715.26,0.00015616,2]
[323002332,1713581457765,-885.67,0.00015616,2]
[323002333,1713581457773,-500.0,0.00015616,2]
[323002334,1713581457782,-500.0,0.00015616,2]
[323002335,1713581457792,-500.0,0.00015616,2]
[323002336,1713581457801,-500.0,0.00015616,2]
[323002337,1713581457810,-573.71,0.00015616,2]
[323002338,1713581457819,-500.0,0.00015616,2]
[323002339,1713581457829,-500.0,0.00015616,2]
[323002340,1713581457838,-500.0,0.00015616,2]
[323002341,1713581457847,-500.0,0.00015616,2]
[323002342,1713581457856,-500.0,0.00015616,2]
[323002343,1713581457866,-516.28,0.00015616,2]
[323002344,1713581457875,-500.0,0.00015616,2]
[323002345,1713581457884,-500.0,0.00015616,2]
[323002346,1713581457893,-500.0,0.00015616,2]
[323002347,1713581457903,-500.0,0.00015616,2]
[323002348,1713581457912,-500.0,0.00015616,2]
[323002349,1713581457921,-500.0,0.00015616,2]
[323002350,1713581457930,-500.0,0.00015616,2]
[323002351,1713581457939,-500.0,0.00015616,2]
[323002352,1713581457948,-500.0,0.00015616,2]
[323002353,1713581457957,-500.0,0.00015616,2]
[323002354,1713581457966,-500.0,0.00015616,2]
[323002355,1713581457975,-500.0,0.00015616,2]
[323002356,1713581457985,-500.0,0.00015616,2]
[323002357,1713581457995,-500.0,0.00015616,2]
[323002358,1713581458004,-523.76,0.00015616,2]
[323002359,1713581458014,-723.46,0.00015616,2]
[323002360,1713581458022,-643.85,0.00015616,2]
[323002361,1713581458031,-500.0,0.00015616,2]
[323002362,1713581458041,-500.0,0.00015616,2]
[323002363,1713581458054,-500.0,0.00015616,2]
[323002364,1713581458064,-500.0,0.00015616,2]
[323002365,1713581458075,-500.0,0.00015616,2]
[323002366,1713581458084,-500.0,0.00015616,2]
[323002367,1713581458093,-500.0,0.00015616,2]
[323002368,1713581458102,-500.0,0.00015616,2]
[323002369,1713581458111,-500.0,0.00015616,2]
[323002370,1713581458121,-500.0,0.00015616,2]
[323002371,1713581458131,-609.16,0.00015616,2]
[323002372,1713581458140,-500.0,0.00015616,2]
[323002373,1713581458150,-612.1,0.00015616,2]
[323002374,1713581458159,-500.0,0.00015616,2]
[323002375,1713581458333,-752.3,0.00015616,2]
[323002376,1713581458344,-634.80714483,0.00015616,2]
[323002377,1713581458353,-500.0,0.00015616,2]
[323002378,1713581458363,-500.0,0.00015616,2]
[323002379,1713581458372,-500.0,0.00015616,2]
[323002380,1713581458382,-500.0,0.00015616,2]
[323002381,1713581458391,-500.0,0.00015616,2]
[323002382,1713581458400,-622.12,0.00015616,2]
[323002383,1713581458410,-500.0,0.00015616,2]
[323002384,1713581458420,-596.96,0.00015616,2]
[323002385,1713581458429,-911.34,0.00015616,2]
[323002386,1713581458438,-611.54,0.00015616,2]
[323002387,1713581458447,-500.0,0.00015616,2]
[323002388,1713581458459,-500.0,0.00015616,2]
[323002389,1713581458468,-500.0,0.00015616,2]
[323002390,1713581458477,-700.89,0.00015616,2]
[323002391,1713581458487,-500.0,0.00015616,2]
[323002392,1713581458496,-500.0,0.00015616,2]
[323002393,1713581458506,-500.0,0.00015616,2]
[323002394,1713581458515,-500.0,0.00015616,2]
[323002395,1713581458525,-500.0,0.00015616,2]
[323002396,1713581458534,-500.0,0.00015616,2]
[323002397,1713581458543,-1032.64,0.00015616,2]
[323002398,1713581458553,-500.0,0.00015616,2]
[323002399,1713581458562,-500.0,0.00015616,2]
[323002400,1713581458571,-500.0,0.00015616,2]
[323002401,1713581458581,-500.0,0.00015616,2]
[323002402,1713581458590,-912.95,0.00015616,2]
[323002403,1713581458599,-500.0,0.00015616,2]
[323002404,1713581458609,-500.0,0.00015616,2]
[323002405,1713581458619,-500.0,0.00015616,2]
[323002406,1713581458628,-500.0,0.00015616,2]
[323002407,1713581458638,-500.0,0.00015616,2]
[323002408,1713581458647,-500.0,0.00015616,2]
[323002409,1713581458657,-525.01,0.00015616,2]
[323002410,1713581458667,-928.63,0.00015616,2]
[323002411,1713581458678,-844.94,0.00015616,2]
[323002412,1713581458687,-500.0,0.00015616,2]
[323002413,1713581458696,-500.0,0.00015616,2]
[323002414,1713581458706,-725.61,0.00015616,2]
[323002415,1713581458716,-587.57,0.00015616,2]
[323002416,1713581458726,-500.0,0.00015616,2]
[323002417,1713581458735,-539.67,0.00015616,2]
[323002418,1713581458745,-500.0,0.00015616,2]
[323002419,1713581458755,-529.04,0.00015616,2]
[323002420,1713581458764,-199.9656597,0.00015616,2]
[323002421,1713581458773,-500.0,0.00015616,2]
[323002422,1713581458783,-500.0,0.00015616,2]
[323002423,1713581458793,-879.05,0.00015616,2]
[323002424,1713581458803,-701.04,0.00015616,2]
[323002425,1713581458812,-767.38,0.00015616,2]
[323002426,1713581458821,-500.0,0.00015616,2]
[323002427,1713581458831,-526.72,0.00015616,2]
[323002428,1713581458840,-2013.87,0.00015616,2]
[323002429,1713581458849,-868.14,0.00015616,2]
[323002430,1713581458859,-500.0,0.00015616,2]
[323002431,1713581458868,-500.0,0.00015616,2]
[323002432,1713581458877,-500.0,0.00015616,2]
[323002433,1713581458887,-500.0,0.00015616,2]
[323002434,1713581458896,-500.0,0.00015616,2]
[323002435,1713581458906,-500.0,0.00015616,2]
[323002436,1713581458916,-624.08,0.00015616,2]
[323002437,1713581458925,-1140.6,0.00015616,2]
[323002438,1713581458934,-500.0,0.00015616,2]
[323002439,1713581458943,-830.17,0.00015616,2]
[323002440,1713581458952,-810.29,0.00015616,2]
[323002441,1713581458961,-500.0,0.00015616,2]
[323002442,1713581458970,-500.0,0.00015616,2]
[323002443,1713581458979,-1148.51,0.00015616,2]
[323002444,1713581458988,-500.0,0.00015616,2]
[323002445,1713581458998,-852.33,0.00015616,2]
[323002446,1713581459007,-500.0,0.00015616,2]
[323002447,1713581459017,-1297.77,0.00015616,2]
[323002448,1713581459026,-500.0,0.00015616,2]
[323002449,1713581459036,-500.0,0.00015616,2]
[323002450,1713581459045,-718.35,0.00015616,2]
[323002451,1713581459054,-973.38,0.00015616,2]
[323002452,1713581459063,-153.11846306,0.00015616,2]
[323002453,1713581459073,-635.09,0.00015616,2]
[323002454,1713581459082,-500.0,0.00015616,2]
[323002455,1713581459091,-500.0,0.00015616,2]
[323002456,1713581459101,-703.04,0.00015616,2]
[323002457,1713581459110,-588.51,0.00015616,2]
[323002458,1713581459120,-500.0,0.00015616,2]
[323002459,1713581459129,-500.0,0.00015616,2]
[323002460,1713581459138,-500.0,0.00015616,2]
[323002461,1713581459147,-500.0,0.00015616,2]
[323002462,1713581459156,-669.33,0.00015616,2]
[323002463,1713581459165,-557.52,0.00015616,2]
[323002464,1713581459174,-998.69,0.00015616,2]
[323002465,1713581459183,-500.0,0.00015616,2]
[323002466,1713581459193,-663.63,0.00015616,2]
[323002467,1713581459202,-532.64,0.00015616,2]
[323002468,1713581459211,-500.0,0.00015616,2]
[323002469,1713581459220,-1089.66,0.00015616,2]
[323002470,1713581459229,-1665.06,0.00015616,2]
[323002471,1713581459238,-906.05,0.00015616,2]
[323002472,1713581459248,-500.0,0.00015616,2]
[323002473,1713581459257,-803.42,0.00015616,2]
[323002474,1713581459268,-500.0,0.00015616,2]
[323002475,1713581459280,-500.0,0.00015616,2]
[323002476,1713581459290,-500.0,0.00015616,2]
[323002477,1713581459299,-327.48037992,0.00015616,2]
[323002478,1713581459308,-500.0,0.00015616,2]
[323002479,1713581459317,-872.65,0.00015616,2]
[323002480,1713581459327,-500.0,0.00015616,2]
[323002481,1713581459338,-1389.1,0.00015616,2]
[323002482,1713581459347,-956.77,0.00015616,2]
[323002483,1713581459357,-500.0,0.00015616,2]
[323002484,1713581459366,-502.02,0.00015616,2]
[323002485,1713581459376,-528.57,0.00015616,2]
[323002486,1713581459385,-1227.77,0.00015616,2]
[323002487,1713581459394,-562.26,0.00015616,2]
[323002488,1713581459405,-500.0,0.00015616,2]
[323002489,1713581459414,-547.94,0.00015616,2]
[323002490,1713581459425,-650.91,0.00015616,2]
[323002491,1713581459436,-695.2,0.00015616,2]
[323002492,1713581459445,-825.19,0.00015616,2]
[323002493,1713581459456,-975.89,0.00015616,2]
[323002494,1713581459465,-500.0,0.00015616,2]
[323002495,1713581459474,-854.98,0.00015616,2]
[323002496,1713581459484,-838.84,0.00015616,2]
[323002497,1713581459493,-500.0,0.00015616,2]
[323002498,1713581459504,-500.0,0.00015616,2]
[323002499,1713581459513,-500.0,0.00015616,2]
[323002500,1713581459522,-614.03,0.00015616,2]
[323002501,1713581459531,-906.31,0.00015616,2]
[323002502,1713581459541,-500.0,0.00015616,2]
[323002503,1713581459551,-500.0,0.00015616,2]
[323002504,1713581459560,-1018.62,0.00015616,2]
[323002505,1713581459569,-500.0,0.00015616,2]
[323002506,1713581459579,-500.0,0.00015616,2]
[323002507,1713581459588,-500.0,0.00015616,2]
[323002508,1713581459597,-562.73,0.00015616,2]
[323002509,1713581459606,-769.43,0.00015616,2]
[323002510,1713581459616,-694.71,0.00015616,2]
[323002511,1713581459625,-500.0,0.00015616,2]
[323002512,1713581459635,-500.0,0.00015616,2]
[323002513,1713581459644,-500.0,0.00015616,2]
[323002514,1713581459654,-500.0,0.00015616,2]
[323002515,1713581459663,-500.0,0.00015616,2]
[323002516,1713581459673,-500.0,0.00015616,2]
[323002517,1713581459687,-641.71,0.00015616,2]
[323002518,1713581459696,-888.36,0.00015616,2]
[323002519,1713581459706,-500.0,0.00015616,2]
[323002520,1713581459715,-1094.59,0.00015616,2]
[323002521,1713581459725,-901.19,0.00015616,2]
[323002522,1713581459735,-500.0,0.00015616,2]
[323002523,1713581459744,-1057.5,0.00015616,2]
[323002524,1713581459754,-500.0,0.00015616,2]
[323002525,1713581459764,-500.0,0.00015616,2]
[323002526,1713581459775,-500.0,0.00015616,2]
[323002527,1713581459785,-500.0,0.00015616,2]
[323002528,1713581459795,-1065.81,0.00015616,2]
[323002529,1713581459804,-906.41,0.00015616,2]
[323002530,1713581459814,-500.0,0.00015616,2]
[323002531,1713581459824,-500.0,0.00015616,2]
[323002532,1713581459833,-707.76,0.00015616,2]
[323002533,1713581459844,-921.29,0.00015616,2]
[323002534,1713581459854,-851.32,0.00015616,2]
[323002535,1713581459865,-1658.75,0.00015616,2]
[323002536,1713581459875,-500.0,0.00015616,2]
[323002537,1713581459884,-500.0,0.00015616,2]
[323002538,1713581459894,-500.0,0.00015616,2]
[323002539,1713581459904,-500.0,0.00015616,2]
[323002540,1713581459913,-500.0,0.00015616,2]
[323002541,1713581459922,-700.57,0.00015616,2]
[323002542,1713581459931,-806.92,0.00015616,2]
[323002543,1713581459941,-1355.65,0.00015616,2]
[323002544,1713581459951,-500.0,0.00015616,2]
[323002545,1713581459961,-1135.39,0.00015616,2]
[323002546,1713581459971,-500.0,0.00015616,2]
[323002547,1713581459980,-500.0,0.00015616,2]
[323002548,1713581459990,-500.0,0.00015616,2]
[323002549,1713581460000,-500.0,0.00015616,2]
[323002550,1713581460010,-1291.39,0.00015616,2]
[323002551,1713581460020,-613.97,0.00015616,2]
[323002552,1713581460030,-166.91005396,0.00015616,2]
[323002553,1713581460040,-742.47,0.00015616,2]
[323002554,1713581460049,-563.86,0.00015616,2]
[323002555,1713581460059,-528.11,0.00015616,2]
[323002556,1713581460069,-500.0,0.00015616,2]
[323002557,1713581460079,-616.97,0.00015616,2]
[323002558,1713581460089,-500.0,0.00015616,2]
[323002559,1713581460099,-500.0,0.00015616,2]
[323002560,1713581460108,-2002.47,0.00015616,2]
[323002561,1713581460118,-500.0,0.00015616,2]
[323002562,1713581460128,-668.93,0.00015616,2]
[323002563,1713581460137,-1452.94,0.00015616,2]
[323002564,1713581460147,-850.5,0.00015616,2]
[323002565,1713581460157,-627.82,0.00015616,2]
[323002566,1713581460167,-742.59,0.00015616,2]
[323002567,1713581460177,-1006.61,0.00015616,2]
[323002568,1713581460187,-503.41350245,0.00015616,2]
[323002569,1713581460196,-613.84,0.00015616,2]
[323002570,1713581460205,-1206.16,0.00015616,2]
[323002571,1713581460215,-956.94,0.00015616,2]
[323002572,1713581460225,-610.6,0.00015616,2]
[323002573,1713581460235,-500.0,0.00015616,2]
[323002574,1713581460244,-657.61,0.00015616,2]
[323002575,1713581460253,-1142.79,0.00015616,2]
[323002576,1713581460262,-500.0,0.00015616,2]
[323002577,1713581460271,-540.86,0.00015616,2]
[323002578,1713581460281,-500.0,0.00015616,2]
[323002579,1713581460290,-500.0,0.00015616,2]
[323002580,1713581460299,-853.01,0.00015616,2]
[323002581,1713581460309,-1791.44,0.00015616,2]
[323002582,1713581460318,-710.59,0.00015616,2]
[323002583,1713581460327,-500.0,0.00015616,2]
[323002584,1713581460336,-875.05,0.00015616,2]
[323002585,1713581460345,-500.0,0.00015616,2]
[323002586,1713581460355,-168.07,0.00015616,2]
[323002587,1713581460364,-2106.63,0.00015616,2]
[323002588,1713581460373,-500.0,0.00015616,2]
[323002589,1713581460383,-879.47,0.00015616,2]
[323002590,1713581460392,-500.0,0.00015616,2]
[323002591,1713581460401,-1783.28,0.00015616,2]
[323002592,1713581460410,-1851.35,0.00015616,2]
[323002593,1713581460420,-656.34,0.00015616,2]
[323002594,1713581460429,-1175.68,0.00015616,2]
[323002595,1713581460439,-500.0,0.00015616,2]
[323002596,1713581460450,-500.0,0.00015616,2]
[323002597,1713581460459,-500.0,0.00015616,2]
[323002598,1713581460469,-500.0,0.00015616,2]
[323002599,1713581460479,-1066.64,0.00015616,2]
[323002600,1713581460489,-500.0,0.00015616,2]
[323002601,1713581460498,-500.0,0.00015616,2]
[323002602,1713581460508,-500.0,0.00015616,2]
[323002603,1713581460517,-691.31,0.00015616,2]
[323002604,1713581460526,-500.0,0.00015616,2]
[323002605,1713581460536,-500.0,0.00015616,2]
[323002606,1713581460545,-500.0,0.00015616,2]
[323002607,1713581460555,-2020.51,0.00015616,2]
[323002608,1713581460565,-721.5,0.00015616,2]
[323002609,1713581460574,-1530.18,0.00015616,2]
[323002610,1713581460583,-500.0,0.00015616,2]
[323002611,1713581460593,-389.18134481,0.00015616,2]
[323002612,1713581460602,-848.69,0.00015616,2]
[323002613,1713581460612,-500.0,0.00015616,2]
[323002614,1713581460621,-1240.06,0.00015616,2]
[323002615,1713581460631,-800.87,0.00015616,2]
[323002616,1713581460640,-500.0,0.00015616,2]
[323002617,1713581460650,-500.0,0.00015616,2]
[323002618,1713581460661,-1012.53,0.00015616,2]
[323002619,1713581460671,-1404.07,0.00015616,2]
[323002620,1713581460682,-1018.57,0.00015616,2]
[323002621,1713581460691,-500.0,0.00015616,2]
[323002622,1713581460701,-632.58,0.00015616,2]
[323002623,1713581460711,-500.0,0.00015616,2]
[323002624,1713581460723,-1701.46,0.00015616,2]
[323002625,1713581460733,-831.68,0.00015616,2]
[323002626,1713581460743,-500.0,0.00015616,2]
[323002627,1713581460753,-1112.34,0.00015616,2]
[323002628,1713581460769,-500.0,0.00015616,2]
[323002629,1713581460778,-671.7,0.00015616,2]
[323002630,1713581460789,-1212.76,0.00015616,2]
[323002631,1713581460798,-500.0,0.00015616,2]
[323002632,1713581460809,-1695.7,0.00015616,2]
[323002633,1713581460819,-500.0,0.00015616,2]
[323002634,1713581460830,-500.0,0.00015616,2]
[323002635,1713581460840,-1772.19,0.00015616,2]
[323002636,1713581460850,-500.0,0.00015616,2]
[323002637,1713581460860,-500.0,0.00015616,2]
[323002638,1713581461248,-533.47,0.00015616,2]
[323002639,1713581461257,-500.0,0.00015616,2]
[323002640,1713581461267,-500.0,0.00015616,2]
[323002641,1713581461277,-525.93,0.00015616,2]
[323002642,1713581461287,-500.0,0.00015616,2]
[323002643,1713581461297,-571.37,0.00015616,2]
[323002644,1713581461306,-500.0,0.00015616,2]
[323002645,1713581461315,-519.61,0.00015616,2]
[323002646,1713581461324,-815.97,0.00015616,2]
[323002647,1713581461333,-500.0,0.00015616,2]
[323002648,1713581461343,-1679.01,0.00015616,2]
[323002649,1713581461352,-837.01,0.00015616,2]
[323002650,1713581461362,-150.0,0.00015616,2]
[323002651,1713581461371,-500.0,0.00015616,2]
[323002652,1713581461380,-500.0,0.00015616,2]
[323002653,1713581461390,-1632.28,0.00015616,2]
[323002654,1713581461399,-648.84,0.00015616,2]
[323002655,1713581461411,-1761.93,0.00015616,2]
[323002656,1713581461421,-500.0,0.00015616,2]
[323002657,1713581461430,-664.82,0.00015616,2]
[323002658,1713581461440,-500.0,0.00015616,2]
[323002659,1713581461450,-834.34,0.00015616,2]
[323002660,1713581461460,-1126.31,0.00015616,2]
[323002661,1713581461470,-537.31,0.00015616,2]
[323002662,1713581461479,-1431.44,0.00015616,2]
[323002663,1713581461489,-500.0,0.00015616,2]
[323002664,1713581461499,-880.9,0.00015616,2]
[323002665,1713581461509,-644.84,0.00015616,2]
[323002666,1713581461519,-500.0,0.00015616,2]
[323002667,1713581461529,-867.77,0.00015616,2]
[323002668,1713581461538,-719.69,0.00015616,2]
[323002669,1713581461548,-500.0,0.00015616,2]
[323002670,1713581461557,-500.0,0.00015616,2]
[323002671,1713581461567,-2999.16,0.00015616,2]
[323002672,1713581461577,-500.0,0.00015616,2]
[323002673,1713581461587,-500.0,0.00015616,2]
[323002674,1713581461596,-500.0,0.00015616,2]
[323002675,1713581461606,-788.07,0.00015616,2]
[323002676,1713581461615,-677.1,0.00015616,2]
[323002677,1713581461625,-1662.46,0.00015616,2]
[323002678,1713581461635,-500.0,0.00015616,2]
[323002679,1713581461645,-500.0,0.00015616,2]
[323002680,1713581461656,-500.0,0.00015616,2]
[323002681,1713581461666,-500.0,0.00015616,2]